fUSD/lending_fUSD_20250205
["ID","MTS","AMOUNT","RATE_DAILY","PERIOD"]
[351684008,1738720239024,-500.0,0.00011171,2]
[351684009,1738720239034,-500.0,0.00011171,2]
[351684010,1738720239043,-500.0,0.00011171,2]
[351684011,1738720239054,-506.86106867,0.00011171,2]
[351684012,1738720239065,-507.72882082,0.00011171,2]
[351684013,1738720239076,-500.0,0.00011171,2]
[351684014,1738720239087,-500.0,0.00011171,2]
[351684015,1738720239097,-506.52659058,0.00011171,2]
[351684016,1738720239106,-500.0,0.00011171,2]
[351684017,1738720239115,-508.52584093,0.00011171,2]
[351684018,1738720239125,-500.0,0.00011171,2]
[351684019,1738720239134,-296.36885761,0.00011171,2]
[351684020,1738720239143,-506.36229767,0.00011171,2]
[351684021,1738720239152,-500.0,0.00011171,2]
[351684022,1738720239161,-508.08377652,0.00011171,2]
[351684023,1738720239171,-582.17980046,0.00011171,2]
[351684024,1738720239180,-500.0,0.00011171,2]
[351684025,1738720239189,-577.68553757,0.00011171,2]
[351684026,1738720239199,-552.47393533,0.00011171,2]
[351684027,1738720239208,-500.0,0.00011171,2]
[351684028,1738720239217,-507.32896179,0.00011171,2]
[351684029,1738720239226,-500.0,0.00011171,2]
[351684030,1738720239235,-509.55654026,0.00011171,2]
[351684031,1738720239244,-500.0,0.00011171,2]
[351684032,1738720239254,-508.65394684,0.00011171,2]
[351684033,1738720239263,-525.8625811,0.00011171,2]
[351684034,1738720239274,-500.0,0.00011171,2]
[351684035,1738720239284,-500.0,0.00011171,2]
[351684036,1738720239294,-511.17761598,0.00011171,2]
[351684037,1738720239303,-500.0,0.00011171,2]
[351684038,1738720239312,-508.3753395,0.00011171,2]
[351684039,1738720239321,-510.7777204,0.00011171,2]
[351684040,1738720239330,-512.83454527,0.00011171,2]
[351684041,1738720239339,-423.30190746,0.00011171,2]
[351684042,1738720239349,-508.37510802,0.00011171,2]
[351684043,1738720239358,-504.11930259,0.00011171,2]
[351684044,1738720239367,-508.13670407,0.00011171,2]
[351684045,1738720239376,-509.8998595,0.00011171,2]
[351684046,1738720239385,-507.8782895,0.00011171,2]
[351684047,1738720239395,-500.0,0.00011171,2]
[351684048,1738720239404,-510.08082336,0.00011171,2]
[351684049,1738720239413,-500.0,0.00011171,2]
[351684050,1738720239422,-607.30281571,0.00011171,2]
[351684051,1738720239431,-506.50783909,0.00011171,2]
[351684052,1738720239441,-503.10254287,0.00011171,2]
[351684053,1738720239450,-511.06466948,0.00011171,2]
[351684054,1738720239459,-503.29134937,0.00011171,2]
[351684055,1738720239468,-604.91448201,0.00011171,2]
[351684056,1738720239478,-418.83983581,0.00011171,2]
[351684057,1738720239487,-500.0,0.00011171,2]
[351684058,1738720239496,-503.58550106,0.00011171,2]
[351684059,1738720239552,-519.45798633,0.00011171,2]
[351684060,1738720239561,-508.89538749,0.00011171,2]
[351684061,1738720239571,-500.0,0.00011171,2]
[351684062,1738720239580,-500.0,0.00011171,2]
[351684063,1738720239589,-508.38362439,0.00011171,2]
[351684064,1738720239598,-511.53832754,0.00011171,2]
[351684065,1738720239607,-438.24678093,0.00011171,2]
[351684066,1738720239616,-500.0,0.00011171,2]
[351684067,1738720239625,-150.0,0.00011175,2]
[351684068,1738720239634,-643.39,0.00011178,2]
[351684069,1738720239643,-152.21,0.00011178,2]
[351684070,1738720239653,-150.62,0.00011178,2]
[351684071,1738720239662,-150.0,0.00011178,2]
[351684072,1738720239671,-150.43,0.00011178,2]
[351684073,1738720239680,-150.0,0.00011193,2]
[351684074,1738720239689,-155.71946807,0.00011197,2]
[351684075,1738720239698,-150.0,0.00011205,2]
[351684076,1738720239708,-150.0,0.00011212,2]
[351684077,1738720239717,-1368.40997469,0.00011222,2]
[351684078,1738720239727,-150.0,0.00011223,2]
[351684079,1738720239737,-150.0,0.00011226,2]
[351684080,1738720239747,-150.0,0.00011251,2]
[351684081,1738720239757,-504.28337631,0.00011289,2]
[351684082,1738720239767,-500.0,0.00011289,2]
[351684083,1738720239777,-207.02865472,0.00011289,2]
[351684084,1738720239787,-503.73329081,0.00011289,2]
[351684085,1738720239796,-500.0,0.00011289,2]
[351684086,1738720239805,-500.0,0.00011289,2]
[351684087,1738720239814,-500.62374569,0.00011289,2]
[351684088,1738720239823,-500.0,0.00011289,2]
[351684089,1738720239833,-500.0,0.00011289,2]
[351684090,1738720239843,-175.99358142,0.00011289,2]
[351684091,1738720239856,-500.0,0.00011289,2]
[351684092,1738720239867,-500.0,0.00011289,2]
[351684093,1738720239876,-244.67633045,0.00011289,2]
[351684094,1738720239887,-500.0,0.00011289,2]
[351684095,1738720239895,-500.0,0.00011289,2]
[351684096,1738720239903,-407.94484695,0.00011289,2]
[351684097,1738720239913,-192367.75200723,0.0001129,2]
[351684098,1738720239923,-914.22337029,0.000113,2]
[351684099,1738720239934,-3028.16813096,0.000113,2]
[351684100,1738720239943,-185.21196166,0.000113,2]
[351684101,1738720239953,-500.0,0.00011307,2]
[351684102,1738720239963,-652.42,0.00011307,2]
[351684103,1738720239973,-532.7442602,0.00011307,2]
[351684104,1738720239984,-500.0,0.00011307,2]
[351684105,1738720239994,-795.39,0.00011307,2]
[351684106,1738720240004,-500.0,0.00011307,2]
[351684107,1738720240014,-240.41092402,0.00011307,2]
[351684108,1738720240032,-500.0,0.00011307,2]
[351684109,1738720240042,-500.0,0.00011307,2]
[351684110,1738720240052,-500.0,0.00011307,2]
[351684111,1738720240062,-500.0,0.00011307,2]
[351684112,1738720240072,-500.0,0.00011307,2]
[351684113,1738720240083,-500.0,0.00011307,2]
[351684114,1738720240092,-500.0,0.00011307,2]
[351684116,1738720240103,-500.0,0.00011307,2]
[351684118,1738720240112,-500.0,0.00011307,2]
[351684120,1738720240121,-543.18,0.00011307,2]
[351684122,1738720240131,-510.48,0.00011307,2]
[351684123,1738720240141,-500.0,0.00011307,2]
[351684125,1738720240152,-500.0,0.00011307,2]
[351684126,1738720240162,-500.0,0.00011307,2]
[351684127,1738720240172,-185.10189583,0.00011307,2]
[351684128,1738720240182,-500.0,0.00011307,2]
[351684129,1738720240191,-500.0,0.00011307,2]
[351684130,1738720240201,-500.0,0.00011308,2]
[351684131,1738720240210,-489.86797099,0.00011308,2]
[351684133,1738720240220,-518.26060076,0.00011308,2]
[351684135,1738720240230,-354.54976931,0.00011308,2]
[351684136,1738720240240,-519.63379496,0.00011308,2]
[351684137,1738720240249,-511.45433765,0.00011308,2]
[351684138,1738720240259,-199.81381688,0.00011308,2]
[351684139,1738720240268,-500.0,0.00011308,2]
[351684140,1738720240282,-536.21517005,0.00011308,2]
[351684141,1738720240292,-500.0,0.00011308,2]
[351684142,1738720240302,-500.0,0.00011308,2]
[351684143,1738720240311,-511.69823201,0.00011308,2]
[351684144,1738720240321,-512.47617604,0.00011308,2]
[351684145,1738720240331,-172.09230646,0.00011308,2]
[351684146,1738720240341,-500.0,0.00011308,2]
[351684147,1738720240351,-513.6907706,0.00011308,2]
[351684148,1738720240360,-500.0,0.00011308,2]
[351684149,1738720240370,-500.0,0.00011308,2]
[351684150,1738720240379,-601.54245987,0.00011308,2]
[351684151,1738720240388,-525.61922518,0.00011308,2]
[351684152,1738720240398,-253.47671943,0.00011308,2]
[351684153,1738720240407,-268.30574256,0.00011308,2]
[351684154,1738720240416,-500.0,0.00011308,2]
[351684155,1738720240426,-508.92169358,0.00011308,2]
[351684156,1738720240435,-507.47170947,0.00011308,2]
[351684157,1738720240444,-566.71819777,0.00011308,2]
[351684158,1738720240453,-2000.0,0.00011308,2]
[351684159,1738720240462,-1368.40997469,0.00011311,2]
[351684160,1738720240472,-150.0,0.00011318,2]
[351684161,1738720240481,-150.0,0.00011324,2]
[351684162,1738720240490,-518.49847763,0.00011327,2]
[351684163,1738720240499,-524.85255029,0.00011327,2]
[351684164,1738720240509,-514.93828471,0.00011327,2]
[351684165,1738720240518,-521.49598606,0.00011327,2]
[351684166,1738720240530,-505.74114409,0.00011327,2]
[351684167,1738720240539,-511.10394691,0.00011327,2]
[351684168,1738720240549,-504.44536998,0.00011327,2]
[351684169,1738720240558,-540.76833738,0.00011327,2]
[351684170,1738720240567,-507.262547,0.00011327,2]
[351684171,1738720240576,-509.34400853,0.00011327,2]
[351684172,1738720240586,-508.0703165,0.00011327,2]
[351684173,1738720240595,-507.71286569,0.00011327,2]
[351684174,1738720240605,-512.13554046,0.00011327,2]
[351684175,1738720240615,-521.59201931,0.00011327,2]
[351684176,1738720240624,-516.43041583,0.00011327,2]
[351684177,1738720240634,-500.0,0.00011327,2]
[351684178,1738720240644,-520.14473457,0.00011327,2]
[351684179,1738720240653,-340.11933937,0.00011327,2]
[351684180,1738720240663,-396.80282044,0.00011327,2]
[351684181,1738720240672,-438.3321196,0.00011327,2]
[351684182,1738720240681,-500.0,0.00011327,2]
[351684183,1738720240690,-514.98749219,0.00011327,2]
[351684184,1738720240700,-504.17735303,0.00011327,2]
[351684185,1738720240710,-510.85719084,0.00011327,2]
[351684186,1738720240719,-512.10926389,0.00011327,2]
[351684187,1738720240729,-521.85788559,0.00011327,2]
[351684188,1738720240738,-500.0,0.00011327,2]
[351684189,1738720240747,-506.15712688,0.00011327,2]
[351684191,1738720240756,-506.26726481,0.00011327,2]
[351684192,1738720240765,-508.47079178,0.00011327,2]
[351684193,1738720240776,-520.8738349,0.00011327,2]
[351684194,1738720240785,-519.13379366,0.00011327,2]
[351684195,1738720240795,-515.79651877,0.00011327,2]
[351684196,1738720240805,-556.81654705,0.00011327,2]
[351684197,1738720240814,-420.5089329,0.00011327,2]
[351684198,1738720240823,-516.64014262,0.00011327,2]
[351684199,1738720240832,-300.50703932,0.00011327,2]
[351684200,1738720240841,-508.88221856,0.00011327,2]
[351684201,1738720240854,-523.7398402,0.00011327,2]
[351684202,1738720240863,-508.75219587,0.00011327,2]
[351684203,1738720240872,-526.01402369,0.00011327,2]
[351684204,1738720240881,-525.6578934,0.00011327,2]
[351684205,1738720240892,-535.26361384,0.00011327,2]
[351684206,1738720240903,-526.4572607,0.00011327,2]
[351684207,1738720240911,-514.22991661,0.00011327,2]
[351684208,1738720240922,-528.86510304,0.00011327,2]
[351684209,1738720240933,-509.63128554,0.00011327,2]
[351684210,1738720240944,-571.32099262,0.00011327,2]
[351684211,1738720240955,-514.51759032,0.00011327,2]
[351684212,1738720240965,-518.53647671,0.00011327,2]
[351684213,1738720240975,-638.84769545,0.00011327,2]
[351684214,1738720240986,-518.12385962,0.00011327,2]
[351684215,1738720240995,-508.45437131,0.00011327,2]
[351684216,1738720241005,-524.46627295,0.00011327,2]
[351684217,1738720241015,-538.01403868,0.00011327,2]
[351684218,1738720241027,-516.28173281,0.00011327,2]
[351684219,1738720241036,-511.78514501,0.00011327,2]
[351684220,1738720241047,-217.90763771,0.00011327,2]
[351684221,1738720241057,-530.1267525,0.00011327,2]
[351684222,1738720241066,-500.0,0.00011327,2]
[351684223,1738720241076,-534.06477636,0.00011327,2]
[351684224,1738720241086,-153.30196991,0.00011327,2]
[351684225,1738720241096,-500.0,0.00011327,2]
[351684226,1738720241106,-635.82,0.00011327,2]
[351684227,1738720241116,-416.02939395,0.00011327,2]
[351684228,1738720241126,-517.4126499,0.00011327,2]
[351684229,1738720241136,-500.0,0.00011327,2]
[351684230,1738720241146,-517.86528098,0.00011327,2]
[351684231,1738720241157,-520.48538804,0.00011327,2]
[351684232,1738720241167,-507.46927058,0.00011327,2]
[351684233,1738720241178,-511.66007697,0.00011327,2]
[351684234,1738720241188,-508.9738355,0.00011327,2]
[351684235,1738720241198,-504.10801109,0.00011327,2]
[351684236,1738720241208,-500.0,0.00011327,2]
[351684237,1738720241219,-512.38521605,0.00011327,2]
[351684238,1738720241229,-515.04241322,0.00011327,2]
[351684239,1738720241240,-509.62905724,0.00011327,2]
[351684240,1738720241250,-511.83748445,0.00011327,2]
[351684241,1738720241260,-509.64116547,0.00011327,2]
[351684242,1738720241270,-515.06159802,0.00011327,2]
[351684243,1738720241282,-526.05680328,0.00011327,2]
[351684244,1738720241292,-525.23001355,0.00011327,2]
[351684245,1738720241302,-521.59196359,0.00011327,2]
[351684246,1738720241313,-500.0,0.00011327,2]
[351684247,1738720241323,-500.0,0.00011327,2]
[351684248,1738720241334,-30670.36692868,0.00011327,2]
[351684249,1738720241345,-150.0,0.00011338,2]
[351684250,1738720241355,-153.87,0.00011341,2]
[351684251,1738720241366,-150.0,0.00011346,2]
[351684252,1738720241377,-180.828,0.00011347,2]
[351684253,1738720241387,-150.0,0.00011358,2]
[351684254,1738720241398,-3565.396,0.00011368,2]
[351684255,1738720241408,-500.63405984,0.00011373,2]
[351684256,1738720241418,-500.41811626,0.00011373,2]
[351684257,1738720241429,-151.35429421,0.00011373,2]
[351684258,1738720241440,-409.14485725,0.00011373,2]
[351684259,1738720241451,-152.33086739,0.00011373,2]
[351684260,1738720241461,-162.37852093,0.00011373,2]
[351684261,1738720241471,-161.32396032,0.00011373,2]
[351684262,1738720241482,-151.65012565,0.00011373,2]
[351684263,1738720241492,-152.30553898,0.00011373,2]
[351684264,1738720241502,-151.32808066,0.00011373,2]
[351684265,1738720241512,-505.93601111,0.00011373,2]
[351684266,1738720241523,-500.0,0.00011373,2]
[351684267,1738720241533,-151.27351956,0.00011373,2]
[351684268,1738720241542,-161.32398802,0.00011373,2]
[351684269,1738720241552,-161.69398545,0.00011373,2]
[351684270,1738720241563,-300.54795652,0.00011373,2]
[351684271,1738720241572,-500.0,0.00011373,2]
[351684272,1738720241583,-1009.23458089,0.00011374,2]
[351684273,1738720241593,-150.0,0.00011381,2]
[351684274,1738720241604,-3603.489676,0.0001139,2]
[351684275,1738720241615,-2116.6694659,0.0001139,2]
[351684276,1738720241626,-581.6167453,0.0001139,2]
[351684277,1738720241636,-500.0,0.00011398,2]
[351684278,1738720241648,-501.01446152,0.00011399,2]
[351684279,1738720241658,-210.05514334,0.00011399,2]
[351684280,1738720241669,-500.81068558,0.00011399,2]
[351684281,1738720241679,-501.15265856,0.00011399,2]
[351684282,1738720241689,-505.033976,0.00011399,2]
[351684283,1738720241700,-501.28280492,0.00011399,2]
[351684284,1738720241711,-500.34984154,0.00011399,2]
[351684285,1738720241721,-608.52380792,0.00011399,2]
[351684286,1738720241731,-508.26018404,0.00011399,2]
[351684287,1738720241742,-500.75949338,0.00011399,2]
[351684288,1738720241752,-484.05742112,0.00011399,2]
[351684289,1738720241762,-500.84091531,0.00011399,2]
[351684290,1738720241773,-220.71619662,0.00011399,2]
[351684291,1738720241784,-500.52146496,0.00011399,2]
[351684292,1738720241794,-501.14293736,0.00011399,2]
[351684293,1738720241804,-500.54252409,0.00011399,2]
[351684294,1738720241815,-500.95821314,0.00011399,2]
[351684295,1738720241825,-500.80609401,0.00011399,2]
[351684296,1738720241835,-500.25974182,0.00011399,2]
[351684297,1738720241848,-500.66543414,0.00011399,2]
[351684298,1738720241859,-500.65575667,0.00011399,2]
[351684299,1738720241870,-500.51197573,0.00011399,2]
[351684300,1738720241880,-1749.0,0.000114,2]
[351684301,1738720241891,-688528.72499243,0.000114,2]
[351684302,1738720241901,-185.21196165,0.000114,2]
[351684303,1738720241911,-1312.22589842,0.000114,2]
[351684304,1738720241921,-366.0,0.000114,2]
[351684305,1738720241932,-1368.40997469,0.000114,2]
[351684306,1738720241942,-746.0,0.000114,2]
[351684307,1738720241952,-231.0,0.000114,2]
[351684308,1738720241963,-331.13,0.00011421,2]
[351684309,1738720241973,-453.75,0.00011421,2]
[351684310,1738720241983,-500.0,0.00011444,2]
[351684311,1738720241993,-652.42,0.00011444,2]
[351684312,1738720242004,-500.0,0.00011444,2]
[351684313,1738720242015,-795.39,0.00011444,2]
[351684314,1738720242026,-500.0,0.00011444,2]
[351684315,1738720242037,-500.0,0.00011444,2]
[351684316,1738720242047,-500.0,0.00011444,2]
[351684317,1738720242058,-500.0,0.00011444,2]
[351684318,1738720242069,-500.0,0.00011444,2]
[351684319,1738720242080,-500.0,0.00011444,2]
[351684320,1738720242098,-500.0,0.00011444,2]
[351684321,1738720242109,-500.0,0.00011444,2]
[351684322,1738720242120,-500.0,0.00011444,2]
[351684323,1738720242133,-500.0,0.00011444,2]
[351684324,1738720242144,-543.18,0.00011444,2]
[351684325,1738720242156,-510.48,0.00011444,2]
[351684326,1738720242169,-500.0,0.00011444,2]
[351684327,1738720242181,-500.0,0.00011444,2]
[351684328,1738720242193,-500.0,0.00011444,2]
[351684329,1738720242204,-500.0,0.00011444,2]
[351684330,1738720242216,-500.0,0.00011444,2]
[351684331,1738720242227,-500.0,0.00011445,2]
[351684332,1738720242237,-519.28351413,0.00011445,2]
[351684333,1738720242248,-510.84425797,0.00011445,2]
[351684334,1738720242260,-525.06444365,0.00011445,2]
[351684335,1738720242271,-500.0,0.00011445,2]
[351684336,1738720242286,-526.76535489,0.00011445,2]
[351684337,1738720242298,-525.32193899,0.00011445,2]
[351684338,1738720242310,-510.3271158,0.00011445,2]
[351684339,1738720242322,-1086.462,0.00011446,2]
[351684340,1738720242334,-1829.937,0.00011446,2]
[351684341,1738720242345,-872.977,0.00011446,2]
[351684342,1738720242356,-150.0,0.00011446,2]
[351684343,1738720242367,-181.61,0.00011448,2]
[351684344,1738720242378,-250.0,0.00011449,2]
[351684345,1738720242388,-520.80884981,0.00011464,2]
[351684346,1738720242397,-572.78957443,0.00011464,2]
[351684347,1738720242407,-500.0,0.00011464,2]
[351684348,1738720242419,-635.82,0.00011464,2]
[351684349,1738720242431,-500.0,0.00011464,2]
[351684350,1738720242443,-500.0,0.00011464,2]
[351684351,1738720242455,-462.71555389,0.00011464,2]
[351684352,1738720242467,-1378.19954175,0.00011491,3]
[351684353,1738720242478,-3348.0374212,0.00011492,2]
[351684354,1738720242490,-3092.5851664,0.00011492,2]
[351684355,1738720242502,-2837.1329116,0.00011492,2]
[351684356,1738720242514,-2581.6806568,0.00011492,2]
[351684357,1738720242527,-2326.228402,0.00011492,2]
[351684358,1738720242540,-1966.6182554,0.00011492,2]
[351684359,1738720242553,-1816.567045,0.00011492,2]
[351684360,1738720242566,-1666.5158345,0.00011492,2]
[351684361,1738720242578,-1516.4646241,0.00011492,2]
[351684362,1738720242589,-1366.4134136,0.00011492,2]
[351684363,1738720242601,-720.61014,0.00011492,2]
[351684364,1738720242613,-859.6035347,0.00011492,2]
[351684365,1738720242626,-998.5969295,0.00011492,2]
[351684366,1738720242638,-1137.5903242,0.00011492,2]
[351684367,1738720242650,-1276.5837189,0.00011492,2]
[351684368,1738720242662,-1378.19954175,0.00011499,3]
[351684369,1738720242673,-233.50182107,0.00011499,2]
[351684370,1738720242684,-172153.45454563,0.000115,10]
[351684371,1738720242953,-9586.176791,0.000115,10]
[351684372,1738720242966,-639045.20749444,0.000115,10]
[351684373,1738720242979,-620.0,0.000115,10]
[351684374,1738720242991,-5996.39302432,0.000115,10]
[351684375,1738720243021,-612.22,0.00011033,2]
[351684376,1738720243036,-500.0,0.00011033,2]
[351684377,1738720243046,-11068.43774804,0.000115,10]
[351684379,1738720243059,-3470.77812118,0.000115,10]
[351684386,1738720243454,-500.0,0.00010896,2]
[351684387,1738720243465,-500.0,0.00010896,2]
[351684388,1738720243476,-500.0,0.0001117,2]
[351684389,1738720243488,-162.83116906,0.00011307,2]
[351684390,1738720243498,-359.76883094,0.000115,2]
[351684391,1738720243511,-43435.49155214,0.000115,2]
[351684392,1738720243524,-15224.27500562,0.000115,2]
[351684393,1738720243541,-8357.31044982,0.000115,2]
[351684394,1738720243624,-373.47,0.00010897,2]
[351684395,1738720243635,-2492.03,0.000115,2]
[351684396,1738720243665,-453.04661786,0.000115,2]
[351684397,1738720243684,-5192.28963324,0.000115,2]
[351684398,1738720243696,-111038.3262392,0.000115,2]
[351684399,1738720243709,-547.54010449,0.000115,2]
[351684400,1738720243722,-2068667.43401775,0.000115,2]
[351684401,1738720243745,-1949.948,0.000115,2]
[351684402,1738720243932,-500.0,0.00010896,2]
[351684403,1738720243942,-4000.0,0.00011399,2]
[351684404,1738720243952,-47496.57124064,0.000115,2]
[351684406,1738720243965,-261.67439576,0.000115,2]
[351684407,1738720243977,-1399.29955957,0.000115,2]
[351684408,1738720243989,-47515.5,0.000115,2]
[351684409,1738720244001,-917.33185658,0.000115,2]
[351684410,1738720244014,-1917615.9899981,0.000115,2]
[351684411,1738720244027,-271.92848716,0.000115,2]
[351684412,1738720244040,-3886.53140856,0.000115,2]
[351684414,1738720246354,-543.68,0.00010896,2]
[351684415,1738720246365,-368.28369381,0.00011033,2]
[351684416,1738720246489,-316.26000081,8.973e-05,2]
[351684421,1738720258674,500.0,8.851e-05,2]
[351684422,1738720275711,852.5483,8.836e-05,2]
[351684423,1738720299197,-150.0,0.00018903,120]
[351684424,1738720299220,-150.0,0.00018961,120]
[351684425,1738720299244,-150.0,0.00018989,120]
[351684426,1738720299270,-250.0,0.00019,120]
[351684427,1738720299292,-150.0,0.00019001,120]
[351684428,1738720299316,-150.0,0.00019002,120]
[351684429,1738720299339,-150.0,0.00019171,120]
[351684430,1738720299363,-150.0,0.00019191,120]
[351684431,1738720299386,-150.0,0.00019194,120]
[351684432,1738720299410,-150.0,0.00019262,120]
[351684433,1738720299434,-150.0,0.00019265,120]
[351684434,1738720299457,-150.0,0.00019312,120]
[351684435,1738720299480,-150.0,0.00019353,120]
[351684436,1738720299503,-150.0,0.00019364,120]
[351684437,1738720299526,-150.0,0.00019381,120]
[351684438,1738720299549,-150.0,0.00019412,120]
[351684439,1738720299574,-150.0,0.00019426,120]
[351684440,1738720299596,-150.0,0.00019431,120]
[351684441,1738720299620,-150.0,0.00019455,120]
[351684442,1738720299643,-150.0,0.0001946,120]
[351684443,1738720299665,-150.0,0.00019516,120]
[351684444,1738720299688,-150.0,0.00019525,120]
[351684445,1738720299710,-150.0,0.00019699,120]
[351684446,1738720299732,-150.0,0.00019712,120]
[351684447,1738720299755,-150.0,0.00019763,120]
[351684448,1738720299777,-150.0,0.00019765,120]
[351684449,1738720299802,-150.0,0.00019792,120]
[351684451,1738720317860,12530.0,0.00011,15]
[351684452,1738720319164,2278.55234973,0.000181,90]
[351684453,1738720338196,3000.0,0.00011,15]
[351684454,1738720395331,3323.3616,8.836e-05,2]
[351684456,1738720582255,3449.5397,8.836e-05,2]
[351684457,1738720674508,1918.7513,8.836e-05,2]
[351684460,1738720942120,712.21,8.219e-05,2]
[351684463,1738721058668,174.79,0.00019807,120]
[351684464,1738721068287,21675.21,0.000195,120]
[351684466,1738721093614,-23353.0,0.000195,120]
[351684480,1738721431621,-150.0,8.952e-05,2]
[351684481,1738721431631,-699.67844647,8.953e-05,2]
[351684482,1738721431643,-288.69627124,8.953e-05,2]
[351684503,1738721432145,-5355.98689257,8.953e-05,2]
[351684505,1738721432156,-9461.5,8.953e-05,2]
[351684507,1738721432168,-249532.76324015,8.953e-05,2]
[351684509,1738721432177,-500.0,8.962e-05,2]
[351684511,1738721432187,-347.38910466,8.962e-05,2]
[351684513,1738721432200,-536.47886174,8.962e-05,2]
[351684515,1738721432208,-500.0,8.962e-05,2]
[351684517,1738721432218,-505.68,8.962e-05,2]
[351684519,1738721432227,-582.84,8.962e-05,2]
[351684521,1738721432237,-500.0,8.962e-05,2]
[351684523,1738721432247,-500.0,8.962e-05,2]
[351684525,1738721432256,-500.0,8.962e-05,2]
[351684527,1738721432265,-500.0,8.962e-05,2]
[351684529,1738721432275,-500.0,8.962e-05,2]
[351684531,1738721432284,-500.0,8.962e-05,2]
[351684533,1738721432294,-500.0,8.962e-05,2]
[351684535,1738721432304,-500.0,8.962e-05,2]
[351684537,1738721432313,-500.0,8.962e-05,2]
[351684539,1738721432322,-500.0,8.962e-05,2]
[351684541,1738721432332,-500.0,8.962e-05,2]
[351684543,1738721432341,-500.0,8.962e-05,2]
[351684545,1738721432350,-500.0,8.962e-05,2]
[351684547,1738721432360,-500.0,8.962e-05,2]
[351684549,1738721432369,-538.4,8.962e-05,2]
[351684551,1738721432378,-500.0,8.962e-05,2]
[351684553,1738721432388,-500.0,8.962e-05,2]
[351684555,1738721432397,-500.0,8.962e-05,2]
[351684557,1738721432406,-257.81221468,8.962e-05,2]
[351684559,1738721432416,-500.0,8.962e-05,2]
[351684561,1738721432425,-500.0,8.962e-05,2]
[351684563,1738721432435,-204.30107712,8.962e-05,2]
[351684565,1738721432444,-500.0,8.962e-05,2]
[351684567,1738721432454,-500.0,8.962e-05,2]
[351684569,1738721432463,-500.0,8.962e-05,2]
[351684571,1738721432473,-500.0,8.962e-05,2]
[351684573,1738721432482,-500.0,8.962e-05,2]
[351684575,1738721432492,-500.0,8.962e-05,2]
[351684577,1738721432502,-500.0,8.962e-05,2]
[351684579,1738721432512,-500.0,8.962e-05,2]
[351684581,1738721432522,-500.0,8.962e-05,2]
[351684583,1738721432531,-500.0,8.962e-05,2]
[351684585,1738721432540,-629.68,8.962e-05,2]
[351684587,1738721432550,-500.0,8.962e-05,2]
[351684589,1738721432559,-85622.7584,8.973e-05,2]
[351684591,1738721432569,-5000.0,8.973e-05,2]
[351684593,1738721432578,-662.12908895,8.973e-05,2]
[351684595,1738721432587,-860.05,8.985e-05,2]
[351684597,1738721432596,-1986.0,9e-05,2]
[351684599,1738721432605,-500.0,9.099e-05,2]
[351684601,1738721432615,-500.0,9.099e-05,2]
[351684603,1738721432624,-505.68,9.099e-05,2]
[351684605,1738721432633,-582.84,9.099e-05,2]
[351684607,1738721432643,-500.0,9.099e-05,2]
[351684609,1738721432652,-500.0,9.099e-05,2]
[351684611,1738721432660,-219.72692891,9.099e-05,2]
[351684613,1738721432670,-457.72411003,9.099e-05,2]
[351684615,1738721432679,-500.0,9.099e-05,2]
[351684617,1738721432688,-239.48781137,9.099e-05,2]
[351684619,1738721432698,-500.0,9.099e-05,2]
[351684621,1738721432708,-500.0,9.099e-05,2]
[351684623,1738721432718,-500.0,9.099e-05,2]
[351684625,1738721432727,-218.00708665,9.099e-05,2]
[351684627,1738721432738,-500.0,9.099e-05,2]
[351684629,1738721432747,-500.0,9.099e-05,2]
[351684631,1738721432757,-500.0,9.099e-05,2]
[351684633,1738721432766,-500.0,9.099e-05,2]